fUSD/lending_fUSD_20260405
["ID","MTS","AMOUNT","RATE_DAILY","PERIOD"]
[419788466,1775380247586,-500.0,0.00013698,2]
[419788467,1775380247595,-500.0,0.00013698,2]
[419788468,1775380247604,-500.0,0.00013698,2]
[419788469,1775380247614,-500.0,0.00013698,2]
[419788470,1775380247625,-500.0,0.00013698,2]
[419788471,1775380247635,-500.0,0.00013698,2]
[419788472,1775380247645,-500.0,0.00013698,2]
[419788473,1775380247654,-500.0,0.00013698,2]
[419788474,1775380247664,-342.2279524,0.00013698,2]
[419788475,1775380247675,-500.0,0.00013698,2]
[419788476,1775380247684,-879.87,0.00013698,2]
[419788477,1775380247694,-879.87,0.00013698,2]
[419788478,1775380247706,-879.87,0.00013698,2]
[419788479,1775380247716,-879.87,0.00013698,2]
[419788480,1775380247725,-879.87,0.00013698,2]
[419788481,1775380247734,-879.87,0.00013698,2]
[419788482,1775380247744,-879.87,0.00013698,2]
[419788483,1775380247754,-879.87,0.00013698,2]
[419788484,1775380247763,-879.87,0.00013698,2]
[419788485,1775380247773,-879.87,0.00013698,2]
[419788486,1775380247784,-879.87,0.00013698,2]
[419788487,1775380247793,-879.87,0.00013698,2]
[419788488,1775380247803,-879.87,0.00013698,2]
[419788489,1775380247812,-879.87,0.00013698,2]
[419788490,1775380247822,-879.87,0.00013698,2]
[419788491,1775380247832,-500.0,0.00013698,2]
[419788492,1775380247842,-500.0,0.00013698,2]
[419788493,1775380247851,-500.0,0.00013698,2]
[419788494,1775380247861,-500.0,0.00013698,2]
[419788495,1775380247870,-500.0,0.00013698,2]
[419788496,1775380247880,-500.0,0.00013698,2]
[419788497,1775380247890,-500.0,0.00013698,2]
[419788498,1775380247900,-500.0,0.00013698,2]
[419788499,1775380247909,-500.0,0.00013698,2]
[419788500,1775380247919,-500.0,0.00013698,2]
[419788501,1775380247928,-500.0,0.00013698,2]
[419788502,1775380247939,-500.0,0.00013698,2]
[419788503,1775380247948,-568.81904464,0.00013698,2]
[419788504,1775380247957,-551.83212521,0.00013698,2]
[419788505,1775380247967,-500.0,0.00013698,2]
[419788506,1775380247977,-500.0,0.00013698,2]
[419788507,1775380247987,-500.0,0.00013698,2]
[419788508,1775380247997,-500.0,0.00013698,2]
[419788509,1775380248007,-500.0,0.00013698,2]
[419788510,1775380248017,-500.0,0.00013698,2]
[419788511,1775380248026,-500.0,0.00013698,2]
[419788512,1775380248037,-500.0,0.00013698,2]
[419788513,1775380248047,-500.0,0.00013698,2]
[419788514,1775380248056,-500.0,0.00013698,2]
[419788515,1775380248066,-500.0,0.00013698,2]
[419788516,1775380248076,-500.0,0.00013698,2]
[419788517,1775380248085,-500.0,0.00013698,2]
[419788518,1775380248095,-500.0,0.00013698,2]
[419788519,1775380248105,-500.0,0.00013698,2]
[419788520,1775380248115,-500.0,0.00013698,2]
[419788521,1775380248125,-500.0,0.00013698,2]
[419788522,1775380248135,-500.0,0.00013698,2]
[419788523,1775380248144,-500.0,0.00013698,2]
[419788524,1775380248155,-150.0,0.00013699,2]
[419788525,1775380248165,-150.0,0.00013699,2]
[419788526,1775380248175,-150.0,0.00013699,2]
[419788527,1775380248184,-150.0,0.00013699,2]
[419788528,1775380248194,-150.0,0.00013699,2]
[419788529,1775380248204,-150.0,0.00013699,2]
[419788530,1775380248213,-5957.33,0.00013699,2]
[419788531,1775380248225,-717.06,0.00013699,2]
[419788532,1775380248235,-157.85,0.00013699,2]
[419788533,1775380248245,-500.0,0.00013699,2]
[419788534,1775380248255,-164.79711181,0.00013699,2]
[419788535,1775380248264,-500.0,0.00013699,2]
[419788536,1775380248274,-500.0,0.00013699,2]
[419788537,1775380248284,-163.60261744,0.00013699,2]
[419788538,1775380248293,-500.0,0.00013699,2]
[419788539,1775380248303,-403.93256284,0.00013699,2]
[419788540,1775380248313,-500.0,0.00013699,2]
[419788541,1775380248323,-500.0,0.00013699,2]
[419788542,1775380248333,-500.0,0.00013699,2]
[419788543,1775380248343,-385.86149772,0.00013699,2]
[419788544,1775380248355,-500.0,0.00013699,2]
[419788545,1775380248365,-161.91170216,0.00013699,2]
[419788546,1775380248375,-500.0,0.00013699,2]
[419788547,1775380248385,-500.0,0.00013699,2]
[419788548,1775380248395,-500.0,0.00013699,2]
[419788549,1775380248405,-500.0,0.00013699,2]
[419788550,1775380248415,-500.0,0.00013699,2]
[419788551,1775380248425,-500.0,0.00013699,2]
[419788552,1775380248435,-500.0,0.00013699,2]
[419788553,1775380248445,-339.79133416,0.00013699,2]
[419788554,1775380248455,-500.0,0.00013699,2]
[419788555,1775380248465,-500.0,0.00013699,2]
[419788556,1775380248475,-500.13152132,0.00013699,2]
[419788557,1775380248485,-500.0,0.00013699,2]
[419788558,1775380248495,-500.0,0.00013699,2]
[419788559,1775380248505,-500.0,0.00013699,2]
[419788560,1775380248515,-500.0,0.00013699,2]
[419788561,1775380248525,-500.0,0.00013699,2]
[419788562,1775380248534,-500.0,0.00013699,2]
[419788563,1775380248544,-598.99606082,0.00013699,2]
[419788564,1775380248554,-500.0,0.00013699,2]
[419788565,1775380248564,-500.0,0.00013699,2]
[419788566,1775380248574,-500.0,0.00013699,2]
[419788567,1775380248584,-500.0,0.00013699,2]
[419788568,1775380248594,-518.73332026,0.00013699,2]
[419788569,1775380248604,-168.69935806,0.00013699,2]
[419788570,1775380248615,-500.0,0.00013699,2]
[419788571,1775380248624,-202.64993829,0.00013699,2]
[419788572,1775380248635,-500.0,0.00013699,2]
[419788573,1775380248645,-500.0,0.00013699,2]
[419788574,1775380248655,-500.0,0.00013699,2]
[419788575,1775380248665,-210.98153295,0.00013699,2]
[419788576,1775380248675,-160.7467095,0.00013699,2]
[419788577,1775380248686,-515.7358709,0.00013699,2]
[419788578,1775380248695,-500.0,0.00013699,2]
[419788579,1775380248705,-500.0,0.00013699,2]
[419788580,1775380248716,-500.0,0.00013699,2]
[419788581,1775380248726,-500.0,0.00013699,2]
[419788582,1775380248737,-500.0,0.00013699,2]
[419788583,1775380248748,-519.03182682,0.00013699,2]
[419788584,1775380248758,-1000.0,0.00013699,7]
[419788585,1775380248768,-500.0,0.00013699,2]
[419788586,1775380248780,-500.0,0.00013699,2]
[419788587,1775380248789,-500.0,0.00013699,2]
[419788588,1775380248799,-569.20510167,0.00013699,2]
[419788589,1775380248808,-500.0,0.00013699,2]
[419788590,1775380248818,-500.50066882,0.00013699,2]
[419788591,1775380248828,-500.0,0.00013699,2]
[419788592,1775380248839,-607.20051974,0.00013699,2]
[419788593,1775380248851,-162.72924009,0.00013699,2]
[419788594,1775380248862,-500.0,0.00013699,2]
[419788595,1775380248871,-312.74353669,0.00013699,2]
[419788596,1775380248881,-500.0,0.00013699,2]
[419788597,1775380248891,-500.0,0.00013699,2]
[419788598,1775380248903,-445.95006954,0.00013699,2]
[419788599,1775380248915,-198.65,0.00013699,2]
[419788600,1775380248925,-1000.0,0.00013699,2]
[419788601,1775380248935,-1001.03211684,0.00013699,15]
[419788602,1775380248947,-150.0,0.000137,2]
[419788603,1775380248956,-150.0,0.000137,2]
[419788604,1775380248967,-150.0,0.000137,2]
[419788605,1775380248977,-218.48382407,0.000137,2]
[419788606,1775380248988,-157.0,0.000137,2]
[419788607,1775380248999,-22126.88,0.000137,2]
[419788608,1775380249009,-22126.88,0.000137,2]
[419788609,1775380249020,-1600.0,0.00013726,2]
[419788610,1775380249029,-500.0,0.00013731,2]
[419788611,1775380249039,-151.0,0.00013731,2]
[419788612,1775380249048,-508.96,0.00013733,2]
[419788613,1775380249058,-989.7,0.00013751,2]
[419788614,1775380249068,-1289.0,0.00013751,2]
[419788615,1775380249078,-889.96,0.00013751,2]
[419788616,1775380249089,-500.0,0.00013753,2]
[419788617,1775380249100,-237.15,0.00013767,2]
[419788618,1775380249109,-500.0,0.00013786,2]
[419788619,1775380249119,-151.0,0.00013786,2]
[419788620,1775380249129,-1800.0,0.00013808,2]
[419788621,1775380249138,-500.0,0.00013841,2]
[419788622,1775380249148,-151.0,0.00013841,2]
[419788623,1775380249158,-1098.69,0.00013861,2]
[419788624,1775380249168,-879.87,0.00013861,2]
[419788625,1775380249178,-1605.51,0.00013862,2]
[419788626,1775380249188,-765.0,0.00013862,2]
[419788627,1775380249198,-1289.11,0.00013862,2]
[419788628,1775380249208,-500.0,0.00013896,2]
[419788629,1775380249218,-151.0,0.00013896,2]
[419788630,1775380249228,-200.0,0.000139,2]
[419788631,1775380249237,-200.0604195,0.000139,3]
[419788632,1775380249247,-167.16,0.00013922,2]
[419788633,1775380249257,-500.0,0.00013951,2]
[419788634,1775380249267,-151.0,0.00013951,2]
[419788635,1775380249276,-500.0,0.00013969,2]
[419788636,1775380249286,-39608.9787347,0.0001397,2]
[419788637,1775380249296,-150.0,0.00013973,2]
[419788638,1775380249306,-150.0,0.00013973,2]
[419788639,1775380249316,-150.0,0.00013973,2]
[419788640,1775380249325,-150.0,0.00013973,2]
[419788641,1775380249335,-150.0,0.00013973,2]
[419788642,1775380249345,-388.67,0.00013991,2]
[419788643,1775380249355,-1500.0,0.00014,2]
[419788644,1775380249365,-500.0,0.00014006,2]
[419788645,1775380249375,-151.0,0.00014006,2]
[419788646,1775380249385,-181.87,0.00014007,2]
[419788647,1775380249395,-263.7,0.00014033,2]
[419788648,1775380249405,-172.72651742,0.00014041,2]
[419788649,1775380249414,-160.95584322,0.00014051,2]
[419788650,1775380249424,-217.15233878,0.00014059,2]
[419788651,1775380249434,-1481.23780761,0.00014059,2]
[419788652,1775380249443,-200.0,0.00014059,2]
[419788653,1775380249452,-771.01748645,0.00014059,2]
[419788654,1775380249463,-181.08010149,0.00014059,2]
[419788655,1775380249472,-200.0,0.00014059,2]
[419788656,1775380249482,-339.62894544,0.00014059,2]
[419788657,1775380249491,-719.04747942,0.00014059,2]
[419788658,1775380249501,-290.26104003,0.00014059,2]
[419788659,1775380249510,-500.0,0.00014061,2]
[419788660,1775380249520,-151.0,0.00014061,2]
[419788661,1775380249530,-280.47508235,0.00014074,2]
[419788662,1775380249539,-500.0,0.00014115,2]
[419788663,1775380249549,-731.57,0.00014115,2]
[419788664,1775380249558,-1135.9,0.00014115,2]
[419788665,1775380249568,-674.6,0.00014115,2]
[419788666,1775380249578,-484.03247685,0.00014115,2]
[419788667,1775380249587,-500.0,0.00014115,2]
[419788668,1775380249597,-11422.25541393,0.00014115,2]
[419788669,1775380249606,-272.26834831,0.00014145,2]
[419788670,1775380249616,-246.52395132,0.00014145,2]
[419788671,1775380249626,-469.94504273,0.00014189,2]
[419788672,1775380249636,-161.90006801,0.00014189,2]
[419788673,1775380249646,-233.41261583,0.00014189,2]
[419788674,1775380249655,-508.96,0.00014208,2]
[419788675,1775380249665,-163.913,0.00014228,2]
[419788676,1775380249675,-3637.957,0.00014233,2]
[419788677,1775380249684,-1347.0,0.00014233,2]
[419788678,1775380249694,-1052.848,0.00014233,2]
[419788679,1775380249704,-626.724,0.00014233,2]
[419788680,1775380249714,-1267.843,0.00014233,2]
[419788681,1775380249724,-276.522,0.00014233,2]
[419788682,1775380249733,-500.0,0.00014243,2]
[419788683,1775380249743,-150.0,0.00014247,2]
[419788684,1775380249753,-150.0,0.00014247,2]
[419788685,1775380249762,-150.0,0.00014247,2]
[419788686,1775380249771,-150.0,0.00014247,2]
[419788687,1775380249780,-150.0,0.00014247,2]
[419788688,1775380249790,-1000.0,0.00014247,2]
[419788689,1775380249799,-1000.0,0.00014247,2]
[419788690,1775380249809,-1000.0,0.00014247,2]
[419788691,1775380249818,-1000.0,0.00014247,2]
[419788692,1775380249827,-1000.0,0.00014247,2]
[419788693,1775380249953,-1000.0,0.00014247,2]
[419788694,1775380249962,-627.70930647,0.00014247,2]
[419788695,1775380249972,-1000.0,0.00014247,2]
[419788696,1775380249983,-308.03873246,0.00014247,2]
[419788697,1775380249993,-861.43877969,0.00014247,2]
[419788698,1775380250002,-1000.0,0.00014247,2]
[419788699,1775380250011,-1000.0,0.00014247,2]
[419788700,1775380250020,-1000.0,0.00014247,2]
[419788701,1775380250029,-1000.0,0.00014247,2]
[419788702,1775380250038,-1000.0,0.00014247,2]
[419788703,1775380250047,-1000.0,0.00014247,2]
[419788704,1775380250055,-1000.0,0.00014247,2]
[419788705,1775380250064,-1000.0,0.00014247,2]
[419788706,1775380250073,-1000.0,0.00014247,2]
[419788707,1775380250082,-1000.0,0.00014247,2]
[419788708,1775380250091,-1000.0,0.00014247,2]
[419788709,1775380250101,-1000.0,0.00014247,2]
[419788710,1775380250110,-1000.0,0.00014247,2]
[419788711,1775380250121,-189.74788311,0.00014247,2]
[419788712,1775380250131,-500.99241895,0.00014247,2]
[419788713,1775380250140,-1000.0,0.00014247,2]
[419788714,1775380250150,-500.0,0.00014247,2]
[419788715,1775380250160,-1000.0,0.00014247,2]
[419788716,1775380250170,-1000.0,0.00014247,2]
[419788717,1775380250179,-743.80429884,0.00014247,2]
[419788718,1775380250188,-1000.0,0.00014247,2]
[419788719,1775380250197,-686.27125357,0.00014247,2]
[419788720,1775380250207,-1000.0,0.00014247,2]
[419788721,1775380250216,-1000.0,0.00014247,2]
[419788722,1775380250226,-730.09729929,0.00014247,2]
[419788723,1775380250235,-1000.0,0.00014247,2]
[419788724,1775380250244,-1000.0,0.00014247,2]
[419788725,1775380250254,-790.32775663,0.00014247,2]
[419788726,1775380250263,-1000.0,0.00014247,2]
[419788727,1775380250272,-1000.0,0.00014247,2]
[419788728,1775380250283,-1000.0,0.00014247,2]
[419788729,1775380250292,-1000.0,0.00014247,2]
[419788730,1775380250302,-1000.0,0.00014269,2]
[419788731,1775380250311,-996.49996996,0.00014284,2]
[419788732,1775380250320,-469.85,0.00014288,2]
[419788733,1775380250331,-185.26,0.00014315,2]
[419788734,1775380250339,-1047.087,0.00014338,2]
[419788735,1775380250348,-1229.18,0.00014338,2]
[419788736,1775380250357,-415.0,0.00014345,2]
[419788737,1775380250367,-2471.0,0.00014345,2]
[419788738,1775380250377,-500.0,0.00014357,2]
[419788739,1775380250387,-500.0,0.00014357,2]
[419788740,1775380250398,-547.34709933,0.0001437,2]
[419788741,1775380250407,-5957.33,0.00014384,2]
[419788742,1775380250417,-500.0,0.0001439,2]
[419788743,1775380250426,-500.0,0.0001439,2]
[419788744,1775380250435,-500.0,0.0001439,2]
[419788745,1775380250445,-500.0,0.0001439,2]
[419788746,1775380250454,-500.0,0.0001439,2]
[419788747,1775380250464,-500.0,0.0001439,2]
[419788748,1775380250475,-500.0,0.0001439,2]
[419788749,1775380250485,-500.0,0.0001439,2]
[419788750,1775380250495,-500.0,0.0001439,2]
[419788751,1775380250505,-500.0,0.0001439,2]
[419788752,1775380250514,-500.0,0.0001439,2]
[419788753,1775380250523,-568.42076477,0.0001439,2]
[419788754,1775380250532,-10405.80591116,0.0001439,2]
[419788755,1775380250540,-237.15,0.00014395,2]
[419788756,1775380250550,-150.0,0.000144,2]
[419788757,1775380250559,-150.0,0.000144,2]
[419788758,1775380250568,-150.0,0.000144,2]
[419788759,1775380250576,-150.0,0.000144,2]
[419788760,1775380250586,-150.0,0.000144,2]
[419788761,1775380250596,-150.0,0.000144,2]
[419788762,1775380250606,-150.0,0.000144,2]
[419788763,1775380250615,-150.0,0.000144,2]
[419788764,1775380250623,-150.0,0.000144,2]
[419788765,1775380250632,-150.0,0.000144,2]
[419788766,1775380250641,-150.0,0.000144,2]
[419788767,1775380250651,-150.05716299,0.000144,2]
[419788768,1775380250659,-150.0,0.000144,2]
[419788769,1775380250668,-150.0,0.000144,2]
[419788770,1775380250677,-150.0,0.000144,2]
[419788771,1775380250687,-388.67,0.00014417,2]
[419788772,1775380250696,-150.0,0.00014418,2]
[419788773,1775380250706,-167.16,0.0001442,2]
[419788774,1775380250715,-150.0,0.00014421,2]
[419788775,1775380250723,-508.0,0.00014423,3]
[419788776,1775380250732,-150.0,0.00014426,2]
[419788777,1775380250742,-150.0,0.00014429,2]
[419788778,1775380250751,-150.0,0.00014429,2]
[419788779,1775380250760,-150.0,0.00014432,2]
[419788780,1775380250769,-150.0,0.00014436,2]
[419788781,1775380250778,-585.75494577,0.00014442,2]
[419788782,1775380250787,-150.0,0.00014442,2]
[419788783,1775380250796,-150.0,0.00014452,2]
[419788784,1775380250805,-150.0,0.00014453,2]
[419788785,1775380250815,-150.0,0.00014454,2]
[419788786,1775380250824,-150.0,0.00014458,2]
[419788787,1775380250832,-150.0,0.00014458,2]
[419788788,1775380250841,-185.26,0.0001446,10]
[419788789,1775380250850,-150.0,0.00014463,2]
[419788790,1775380250859,-150.0,0.00014464,2]
[419788791,1775380250868,-150.0,0.0001447,2]
[419788792,1775380250877,-150.0,0.00014472,2]
[419788793,1775380250887,-150.0,0.00014477,2]
[419788794,1775380250896,-150.0,0.00014484,2]
[419788795,1775380250905,-1165.86038498,0.00014487,2]
[419788796,1775380250914,-505.13705054,0.00014487,2]
[419788797,1775380250924,-150.0,0.00014487,2]
[419788798,1775380250933,-150.0,0.00014487,2]
[419788799,1775380250942,-150.0,0.00014489,2]
[419788800,1775380250952,-150.0,0.0001449,2]
[419788801,1775380250961,-996.49996996,0.00014495,2]
[419788802,1775380250970,-150.0,0.00014496,2]
[419788803,1775380250979,-150.0,0.00014503,2]
[419788804,1775380250988,-150.0,0.00014505,2]
[419788805,1775380250997,-150.0,0.00014507,2]
[419788806,1775380251007,-160.34417201,0.00014508,2]
[419788807,1775380251016,-500.0,0.00014508,2]
[419788808,1775380251025,-150.0,0.00014508,2]
[419788809,1775380251034,-1000.0,0.00014511,2]
[419788810,1775380251044,-150.0,0.00014516,2]
[419788811,1775380251053,-150.0,0.00014516,2]
[419788812,1775380251062,-500.0,0.00014517,2]
[419788813,1775380251071,-150.0,0.00014526,2]
[419788814,1775380251081,-150.0,0.00014526,2]
[419788815,1775380251095,-150.0,0.00014528,2]
[419788816,1775380251105,-150.0,0.00014529,2]
[419788817,1775380251114,-150.0,0.00014539,2]
[419788818,1775380251124,-428.4476019,0.00014542,2]
[419788819,1775380251133,-150.0,0.00014544,2]
[419788820,1775380251142,-150.0,0.00014545,2]
[419788821,1775380251151,-150.0,0.00014545,2]
[419788822,1775380251160,-150.0,0.00014547,2]
[419788823,1775380251169,-150.0,0.00014555,2]
[419788824,1775380251179,-150.0,0.0001456,2]
[419788825,1775380251188,-150.0,0.0001456,2]
[419788826,1775380251197,-150.0,0.00014562,2]
[419788827,1775380251206,-1098.69,0.00014567,2]
[419788828,1775380251216,-879.87,0.00014567,2]
[419788829,1775380251227,-150.0,0.00014568,2]
[419788830,1775380251238,-150.0,0.00014575,2]
[419788831,1775380251247,-150.0,0.00014575,2]
[419788832,1775380251258,-150.0,0.00014578,2]
[419788833,1775380251268,-150.0,0.0001458,2]
[419788834,1775380251276,-150.0,0.00014581,2]
[419788835,1775380251287,-150.0,0.00014589,2]
[419788836,1775380251297,-150.0,0.00014592,2]
[419788837,1775380251308,-150.0,0.00014598,2]
[419788838,1775380251317,-160.0,0.000146,2]
[419788839,1775380251327,-150.0,0.00014604,2]
[419788840,1775380251336,-150.0,0.00014604,2]
[419788841,1775380251346,-150.0,0.00014606,2]
[419788842,1775380251356,-368.07161935,0.00014607,2]
[419788843,1775380251365,-1536.04360649,0.00014607,2]
[419788844,1775380251375,-200.0,0.00014607,2]
[419788845,1775380251385,-799.54513345,0.00014607,2]
[419788846,1775380251395,-187.78006525,0.00014607,2]
[419788847,1775380251408,-200.0,0.00014607,2]
[419788848,1775380251418,-745.65223616,0.00014607,2]
[419788849,1775380251428,-301.00069851,0.00014607,2]
[419788850,1775380251437,-150.0,0.00014609,2]
[419788851,1775380251446,-150.0,0.00014611,2]
[419788852,1775380251458,-150.0,0.00014613,2]
[419788853,1775380251467,-150.0,0.00014616,2]
[419788854,1775380251477,-989.7,0.00014622,2]
[419788855,1775380251486,-1289.0,0.00014622,2]
[419788856,1775380251495,-889.96,0.00014622,2]
[419788857,1775380251504,-150.0,0.00014624,2]
[419788858,1775380251514,-150.0,0.00014632,2]
[419788859,1775380251523,-150.0,0.00014632,2]
[419788860,1775380251532,-150.0,0.00014633,2]
[419788861,1775380251542,-150.0,0.00014633,2]
[419788862,1775380251551,-150.0,0.00014634,2]
[419788863,1775380251560,-1000.0,0.00014651,2]
[419788864,1775380251569,-150.0,0.00014652,2]
[419788865,1775380251578,-150.0,0.00014653,2]
[419788866,1775380251587,-150.0,0.00014656,2]
[419788867,1775380251596,-150.0,0.00014658,2]
[419788868,1775380251607,-39608.9787347,0.00014662,2]
[419788869,1775380251616,-150.0,0.00014662,2]
[419788870,1775380251625,-150.0,0.00014662,2]
[419788871,1775380251634,-150.0,0.00014667,2]
[419788872,1775380251644,-150.0,0.00014667,2]
[419788873,1775380251653,-150.0,0.00014667,2]
[419788874,1775380251662,-150.0,0.0001467,2]
[419788875,1775380251671,-150.0,0.00014674,2]
[419788876,1775380251681,-1613.0,0.00014674,2]
[419788877,1775380251690,-6453.0,0.00014674,2]
[419788878,1775380251699,-150.0,0.00014678,2]
[419788879,1775380251709,-2129.0,0.00014679,2]
[419788880,1775380251718,-150.0,0.00014684,2]
[419788881,1775380251727,-150.0,0.00014688,2]
[419788882,1775380251736,-150.0,0.00014688,2]
[419788883,1775380251745,-150.0,0.00014691,2]
[419788884,1775380251754,-150.0,0.00014691,2]
[419788885,1775380251763,-150.0,0.00014695,2]
[419788886,1775380251773,-150.0,0.00014706,2]
[419788887,1775380251782,-226.21,0.00014707,2]
[419788888,1775380251792,-469.85,0.00014707,2]
[419788889,1775380251801,-150.0,0.0001471,2]
[419788890,1775380251812,-150.0,0.00014716,2]
[419788891,1775380251829,-150.0,0.0001472,2]
[419788892,1775380251839,-150.0,0.0001472,2]
[419788893,1775380251848,-150.0,0.0001472,2]
[419788894,1775380251858,-150.0,0.0001472,2]
[419788895,1775380251867,-150.0,0.00014724,2]
[419788896,1775380251877,-226.21,0.00014731,2]
[419788897,1775380251886,-1000.0,0.00014734,2]
[419788898,1775380251896,-150.0,0.00014735,2]
[419788899,1775380251905,-150.0,0.00014737,2]
[419788900,1775380251916,-1000.0,0.00014737,2]
[419788901,1775380251925,-150.0,0.00014742,2]
[419788902,1775380251934,-150.0,0.00014748,2]
[419788903,1775380251944,-150.0,0.00014749,2]
[419788904,1775380251953,-150.0,0.00014749,2]
[419788905,1775380251963,-150.0,0.00014752,2]
[419788906,1775380251972,-226.20375685,0.00014754,2]
[419788907,1775380251981,-150.0,0.00014756,2]
[419788908,1775380251992,-150.0,0.00014758,2]
[419788909,1775380252002,-150.0,0.0001476,2]
[419788910,1775380252012,-150.0,0.00014761,2]
[419788911,1775380252023,-150.0,0.00014773,2]
[419788912,1775380252032,-150.0,0.00014778,2]
[419788913,1775380252043,-150.0,0.00014778,2]
[419788914,1775380252052,-150.0,0.00014778,2]
[419788915,1775380252063,-150.0,0.00014779,2]
[419788916,1775380252075,-150.0,0.00014784,2]
[419788917,1775380252085,-150.0,0.00014787,2]
[419788918,1775380252095,-500.0,0.00014791,2]
[419788919,1775380252106,-1500.0,0.00014795,2]
[419788920,1775380252116,-1500.0,0.00014795,2]
[419788921,1775380252125,-1500.0,0.00014795,2]
[419788922,1775380252135,-1500.0,0.00014795,2]
[419788923,1775380252145,-1500.0,0.00014795,2]
[419788924,1775380252154,-1500.0,0.00014795,2]
[419788925,1775380252164,-1227.692277,0.00014795,2]
[419788926,1775380252176,-1002.83538283,0.00014795,2]
[419788927,1775380252186,-1515.96545288,0.00014795,2]
[419788928,1775380252197,-953.31303788,0.00014795,2]
[419788929,1775380252208,-1000.0,0.00014795,2]
[419788930,1775380252218,-1500.0,0.00014795,2]
[419788931,1775380252229,-1500.0,0.00014795,2]
[419788932,1775380252239,-1500.0,0.00014795,2]
[419788933,1775380252249,-1500.0,0.00014795,2]
[419788934,1775380252259,-1500.0,0.00014795,2]
[419788935,1775380252268,-1500.0,0.00014795,2]
[419788936,1775380252277,-1500.0,0.00014795,2]
[419788937,1775380252287,-1500.0,0.00014795,2]
[419788938,1775380252297,-1500.0,0.00014795,2]
[419788939,1775380252307,-1500.0,0.00014795,2]
[419788940,1775380252316,-1500.0,0.00014795,2]
[419788941,1775380252326,-1500.0,0.00014795,2]
[419788942,1775380252335,-1500.0,0.00014795,2]
[419788943,1775380252345,-1500.0,0.00014795,2]
[419788944,1775380252355,-1500.0,0.00014795,2]
[419788945,1775380252364,-1500.0,0.00014795,2]
[419788946,1775380252374,-1500.0,0.00014795,2]
[419788947,1775380252384,-1500.0,0.00014795,2]
[419788948,1775380252394,-1500.0,0.00014795,2]
[419788949,1775380252404,-418.3764967,0.00014795,2]
[419788950,1775380252414,-1500.0,0.00014795,2]
[419788951,1775380252425,-553.41835149,0.00014795,2]
[419788952,1775380252435,-150.0,0.00014796,2]
[419788953,1775380252444,-150.0,0.000148,2]
[419788954,1775380252454,-150.0,0.000148,2]
[419788955,1775380252464,-150.0,0.00014807,2]
[419788956,1775380252473,-150.0,0.00014807,2]
[419788957,1775380252483,-376.29463442,0.00014808,2]
[419788958,1775380252493,-150.0,0.00014813,2]
[419788959,1775380252502,-150.0,0.00014813,2]
[419788960,1775380252512,-150.0,0.00014816,2]
[419788961,1775380252522,-150.0,0.00014817,2]
[419788962,1775380252531,-150.0,0.00014821,2]
[419788963,1775380252540,-150.0,0.00014827,2]
[419788964,1775380252550,-150.0,0.00014831,2]
[419788965,1775380252560,-150.0,0.00014836,2]